Cogmind - Beta 11 @@@ ROGUE MODE // 2022.04.02 @ 18:17:36 Player: Decinym Result: Destroyed by DAS Turret with DAS Cannon Performance ------------- Evolutions (0) 0 Regions Visited (3) 600 Robots Destroyed (11) 55 Value Destroyed (368) 368 Prototype IDs (23) 460 Alien Tech Used (0) 0 Bonus (-186) -186 TOTAL SCORE: 1297 Bonus ------- Aligned with FarCom 300 Friendly Fire -486 Cogmind --------- Core Integrity 0/250 Matter 238/300 Energy 139/140 System Corruption 1% Temperature Cool (1) Movement Walking (90) Location -10/Exiles Parts ------- > --- POWER (1) -------- Light Deuterium Engine > --- PROPULSION (2) --- Potential Leg > --- UTILITY (2) ------ Medium Storage Unit Improved Power Shielding > --- WEAPON (2) ------- (None) > --- INVENTORY (10) --- Light Nuclear Core Light Treads Combat Airjet Large Storage Unit Advanced Visual Processing Unit AWS/Autocannon Peak State ------------ > --- POWER ------------ Light Deuterium Engine > --- PROPULSION ------- Potential Leg Potential Leg > --- UTILITY ---------- Medium Storage Unit Hardened Medium Armor Plating > --- WEAPON ----------- Minigun High-powered Shotgun > --- INVENTORY -------- Light Nuclear Core Light Treads Combat Airjet Large Storage Unit Advanced Visual Processing Unit Improved Power Shielding Rocket Launcher [Rating: 34] Favorites ----------- Power Light Deuterium Engine Engine Light Deuterium Engine Propulsion Light Treads Treads Light Treads Leg Aluminum Leg Utility Medium Storage Unit Storage Medium Storage Unit Processor Transport Network Coupler Protection Improved Power Shielding Weapon Minigun Energy Gun Medium Laser Ballistic Gun Minigun Launcher Rocket Launcher Build | -11 -10 -10 -10 ------- Run | Scr Mat Min Exi Slots Evolved . | . . . . Power . | . . . . Propulsion . | . . . . Utility . | . . . . Weapon . | . . . . Parts Attached 19 | . 2 5 12 Power 1 | . . 1 . Engine 1 | . . 1 . Core . | . . . . Reactor . | . . . . Propulsion 6 | . . 2 4 Treads 3 | . . 2 1 Leg 3 | . . . 3 Wheel . | . . . . Hover . | . . . . Flight . | . . . . Utility 4 | . 2 . 2 Device . | . . . . Storage 1 | . 1 . . Processor 1 | . 1 . . Hackware . | . . . . Protection 2 | . . . 2 Artifact . | . . . . Weapon 8 | . . 2 6 Energy Gun 3 | . . . 3 Energy Cannon . | . . . . Ballistic Gun 3 | . . 1 2 Ballistic Cannon . | . . . . Launcher 2 | . . 1 1 Special Weapon . | . . . . Impact Weapon . | . . . . Slashing Weapon . | . . . . Piercing Weapon . | . . . . Special Melee Weapon . | . . . . Unidentified Prototypes . | . . . . Parts Lost 8 | . . 2 6 Power 1 | . . 1 . Propulsion 1 | . . . 1 Utility 1 | . . . 1 Weapon 5 | . . 1 4 Highest Loss Streak 4 | . . 2 4 To Critical Strikes . | . . . . Average Slot Usage (%) 94 | . 92 99 86 Engine 13 | . 14 13 14 Treads 19 | . . 22 17 Leg 8 | . 28 5 10 Storage 14 | . 14 14 14 Processor 9 | . 7 14 3 Protection 1 | . . . 3 Energy Gun 5 | . 14 8 . Ballistic Gun 13 | . 14 13 12 Launcher 7 | . . 5 9 Naked Turns . | . . . . Heaviest Build 29 | 14 19 22 29 Greatest Support 60 | 20 20 40 60 Greatest Overweight (x) . | . . . . Average Overweight (x) . | . . . . Largest Inventory Capacity 10 | . 10 10 10 Average Capacity 9 | . 8 10 10 Most Carried 10 | . 9 10 10 Average Carried 9 | . 7 9 8 Final Capacity 10 | 8 10 10 10 Final Carried 10 | 6 9 10 8 Class Distribution -------------------- 100% | Mutant Dominant Class ---------------- Mutant | -10/Materials Mutant | -10/Mines Mutant | -10/Exiles Resources | -11 -10 -10 -10 ----------- Run | Scr Mat Min Exi Matter Collected 519 | 200 22 175 122 Remotely . | . . . . Salvage Created 363 | . 60 281 22 Parts 21 | . 3 18 . Haulers Intercepted 1 | . 1 . . Recyclers Shooed . | . . . . Parts Field Recycled . | . . . . Retrieved Matter . | . . . . Parts Self-Destructed . | . . . . Prevented . | . . . . Kills | -11 -10 -10 -10 ------- Run | Scr Mat Min Exi Combat Hostiles Destroyed 12 | . . 10 2 Guns 5 | . . 5 . AOE 7 | . . 5 2 Classes Destroyed 5 | . 1 3 1 Hauler 1 | . 1 . . Swarmer 3 | . . 3 . Grunt 6 | . . 6 . Demolisher 1 | . . 1 . Assembled 5 | . . . 5 Best Kill Streak 3 | . 1 3 2 Combat Bots Only 3 | . . 3 2 Max Kills in Single Turn 3 | . 1 3 3 Gunslinging . | . . . . Exploded 3 | . . 3 2 Melee . | . . . . Uniques/NPCs Destroyed 2 | . . . 2 EX-HEX (-10/Exiles) 8R-AWN (-10/Exiles) Combat | -11 -10 -10 -10 -------- Run | Scr Mat Min Exi Damage Taken 2091 | . 15 564 1512 Core 299 | . . 78 221 Absorbed by Shields . | . . . . Redirected to Shielding 42 | . . . 42 Core Remaining (%) 100 | 100 . . . Volleys Fired 47 | . 4 26 17 Largest 2 | . 2 2 2 Hottest 75 | . 70 75 50 Shots Fired 83 | . 8 50 25 Gun 76 | . 8 47 21 Cannon . | . . . . Launcher 7 | . . 3 4 Special . | . . . . Kinetic 48 | . 4 24 20 Thermal 28 | . 4 23 1 Explosive 7 | . . 3 4 Electromagnetic . | . . . . Robot Hit Streak 12 | . 5 12 4 Robot Miss Streak 4 | . 2 3 4 Penetration Max . | . . . . Secondary Targets . | . . . . Shots Hit Robots 51 | . 5 32 14 Core Hits 36 | . 2 18 16 Critical Kills . | . . . . Critical Parts Destroyed . | . . . . Critical Strikes 1 | . . 1 . Burn 1 | . . 1 . Melee Attacks . | . . . . Impact . | . . . . Slashing . | . . . . Piercing . | . . . . Sneak Attacks . | . . . . Combat Hostiles . | . . . . Follow-up Attacks . | . . . . Damage Inflicted 1270 | . 59 635 576 Guns 616 | . 59 370 187 Cannons . | . . . . Explosions 627 | . . 265 362 Melee . | . . . . Ramming 27 | . . . 27 Kinetic 416 | . 22 207 187 Thermal 200 | . 37 163 . Explosive 627 | . . 265 362 Electromagnetic . | . . . . Impact . | . . . . Slashing . | . . . . Piercing . | . . . . Highest Corruption 1 | . . 1 1 Average Corruption 1 | . . 1 1 Corruption Purged . | . . . . Corruption Blocked . | . . . . Effects 8 | . . 6 2 Message Errors 1 | . . . 1 Matter Fused 3 | . . 2 1 Data Loss (minor) 2 | . . 2 . Misfires 1 | . . 1 . Alerts 1 | . . 1 . Overload Shots . | . . . . Overflow Damage . | . . . . Projectiles . | . . . . Explosions . | . . . . Melee . | . . . . Knockbacks . | . . . . Impact . | . . . . Kinetic . | . . . . Secondary . | . . . . Self-Inflicted Damage . | . . . . Shots . | . . . . Rammed . | . . . . Targets Rammed 9 | . . . 9 Kicked 9 | . . . 9 Crushed . | . . . . Highest Temperature 142 | . 36 142 55 Average Temperature 38 | . 19 46 25 Received Heat Transfer 108 | . . 108 . Siege Activations . | . . . . Robots Corrupted . | . . . . Combat Hostiles . | . . . . Parts Fried . | . . . . Impact Corruptions . | . . . . Robots Melted . | . . . . Combat Hostiles . | . . . . Parts Melted 2 | . . 2 . Heat Transferred 666 | . 111 555 . Parts Sabotaged . | . . . . Parts Stolen . | . . . . Parts Stripped . | . . . . Power Chain Reactions . | . . . . Missiles Intercepted . | . . . . Alert | -11 -10 -10 -10 ------- Run | Scr Mat Min Exi Peak Influence 145 | . 40 145 . Initial 15 | . . 15 . Average 55 | . 14 58 . Maximum Alert Level . | . . . . Low Security (%) 100 | . 100 100 . Level 1 . | . . . . Level 2 . | . . . . Level 3 . | . . . . Level 4 . | . . . . Level 5 . | . . . . High Security . | . . . . Max Security . | . . . . Squads Dispatched 1 | . 1 . . Investigation . | . . . . Extermination . | . . . . Reinforcement 1 | . 1 . . Assault . | . . . . Garrison . | . . . . Intercept . | . . . . Searches Triggered . | . . . . Construction Impeded . | . . . . Haulers Reinforced . | . . . . Active Scanning Responses . | . . . . Cargo Convoy Interrupts . | . . . . Stealth | -11 -10 -10 -10 --------- Run | Scr Mat Min Exi Distress Signals 1 | . 1 . . Communications Jammed . | . . . . Distress Signals . | . . . . Times Spotted 75 | . 3 18 54 Peak Tracking Total 15 | . 4 15 5 Tactical Retreats 8 | . . 1 7 Traps | -11 -10 -10 -10 ------- Run | Scr Mat Min Exi Traps Triggered 1 | . . 1 . Indirectly . | . . . . Trap Hack Attempts . | . . . . Triggered . | . . . . Disarmed . | . . . . Reprogrammed . | . . . . Reused . | . . . . Traps Extracted . | . . . . Installed . | . . . . Triggered . | . . . . Machines | -11 -10 -10 -10 ---------- Run | Scr Mat Min Exi Machines Disabled 8 | . . 4 4 Max in Single Turn 2 | . . 2 2 Machines Sabotaged . | . . . . Garrisons Compromised . | . . . . Overloaded Fab Kills . | . . . . Hacking | -11 -10 -10 -10 --------- Run | Scr Mat Min Exi Machines Accessed 2 | . . 1 1 Terminals . | . . . . Fabricators . | . . . . Repair Stations . | . . . . Recycling Units . | . . . . Scanalyzers . | . . . . Garrison Access . | . . . . Total Hacks 2 | . . 1 1 Successful 2 | . . 1 1 Failed . | . . . . Catastrophic . | . . . . Database Lockouts . | . . . . Manual 1 | . . . 1 Terminals . | . . . . Fabricators . | . . . . Repair Stations . | . . . . Recycling Units . | . . . . Scanalyzers . | . . . . Garrison Access . | . . . . Terminal Hacks 2 | . . 1 1 Open Door 1 | . . 1 . EX-Prototype ID Bank 1 | . . . 1 Fabricator Hacks . | . . . . Repair Station Hacks . | . . . . Recycling Unit Hacks . | . . . . Scanalyzer . | . . . . Garrison Access Hacks . | . . . . Unauthorized Hacks . | . . . . Terminals . | . . . . Fabricators . | . . . . Repair Stations . | . . . . Recycling Units . | . . . . Scanalyzers . | . . . . Garrison Access . | . . . . Data Cores Recovered . | . . . . Used . | . . . . Hacking Detections . | . . . . Full Trace Events . | . . . . Feedback Events . | . . . . Feedback Blocked . | . . . . Robot Schematics Acquired . | . . . . Robots Built . | . . . . Authchips . | . . . . Time . | . . . . Total Robot Build Rating . | . . . . Part Schematics Acquired . | . . . . Parts Built . | . . . . Authchips . | . . . . Time . | . . . . Total Part Build Rating . | . . . . Parts Repaired . | . . . . Time . | . . . . Parts Recycled . | . . . . Recycled Matter . | . . . . Retrieved Matter . | . . . . Retrieved Components . | . . . . Parts Scanalyzed . | . . . . Part Schematics Acquired . | . . . . Parts Damaged . | . . . . Bothacking | -11 -10 -10 -10 ------------ Run | Scr Mat Min Exi Used RIF Installer . | . . . . Robots Hacked . | . . . . Non-combat . | . . . . Combat . | . . . . Robot Hacks Applied . | . . . . Relay Couplers Released . | . . . . Fabnet Peak Effective % . | . . . . Robots Rewired . | . . . . Allies Hacked . | . . . . Hacks Repelled . | . . . . Allies | -11 -10 -10 -10 -------- Run | Scr Mat Min Exi Total Allies . | . . . . Largest Group . | . . . . Highest-Rated Group . | . . . . Highest-Rated Ally . | . . . . Total Orders . | . . . . Ally Attacks 11 | . . . 11 Total Damage 580 | . . . 580 Kills 4 | . . . 4 Allies Corrupted . | . . . . Allies Melted . | . . . . Turrets Deployed 3 | . . . 3 Intel | -11 -10 -10 -10 ------- Run | Scr Mat Min Exi Robot Analysis Total . | . . . . Derelict Logs Recovered 1 | . . 1 . Drone Launches . | . . . . Drone Recoveries . | . . . . Exploration | -11 -10 -10 -10 ------------- Run | Scr Mat Min Exi Turns Passed 2191 | . 108 1248 835 Spaces Moved 1439 | 1 73 760 605 Core . | . . . . Treads 893 | . . 584 309 Legs 546 | 1 73 176 296 Wheels . | . . . . Hover . | . . . . Flight . | . . . . Fastest Speed 45 | 120 120 120 45 Average Speed 138 | 120 120 150 124 Slowest Speed 160 | 120 120 160 160 Overloaded Moves 14 | . . . 14 Propulsion Burnouts . | . . . . Robots Hopped . | . . . . Cave-ins Triggered . | . . . . Exploration Rate (%) 44 | 2 19 98 58 Regions Visited 3 Branch Regions 2 Pre-discovered Areas 1 | . . 1 . Known Exits Taken . | . . . . Unknown Exits Taken 3 | 1 1 1 . Scrap Searched 1 | . . 1 . Spaces Dug . | . . . . Terrain Destroyed 54 | . . 28 26 Melee . | . . . . Projectile . | . . . . AOE 54 | . . 28 26 Terrain Rammed . | . . . . Walls Destroyed . | . . . . Machines Disabled . | . . . . Actions | -11 -10 -10 -10 --------- Run | Scr Mat Min Exi Total 1565 | . 85 815 665 Wait 19 | . 3 11 5 Move 1436 | . 72 759 605 Hop . | . . . . Pick Up 16 | . 3 8 5 Fast Attach 6 | . 1 1 4 Attach 6 | . . 1 5 Detach 3 | . . . 3 Swap 7 | . 1 3 3 Drop 16 | . 1 6 9 Fire 47 | . 4 26 17 Melee . | . . . . Ram . | . . . . Kick 9 | . . . 9 Crush . | . . . . Escape Stasis . | . . . . Rewire . | . . . . Trap . | . . . . Miscellaneous . | . . . . Route ------- -11/Scrapyard -10/Materials -10/Mines (discovered 3 exits: [*Mat x2] / *Exi) -10/Exiles (discovered 1 exit: [*Min]) History --------- Turn | Location | Event 1 | -11/Scrapyard | Discovered new exit (range 0) 1 | -11/Scrapyard | Entered Materials 78 | -10/Materials | Discovered new exit (range 8) 109 | -10/Materials | Entered Mines 168 | -10/Mines | Discovered new exit (range 3) 208 | -10/Mines | Deemed a non-threat by the Exiles lab entrance 208 | -10/Mines | Discovered new exit (range 5) 302 | -10/Mines | Build established: Mutant 344 | -10/Mines | Met a Derelict who couldn't figure out how to use a Trap Extractor 555 | -10/Mines | Learned location of Zion (-6) 647 | -10/Mines | Received a Rocket Launcher from a helpful Derelict 722 | -10/Mines | Assembled infested the area 727 | -10/Mines | Assisted by a Guerilla fighting off Assembled 765 | -10/Mines | Discovered new exit (range 8) 1357 | -10/Mines | Entered Exiles 1378 | -10/Exiles | Discovered new exit (range 15) 1397 | -10/Exiles | Met 8R-AWN 1420 | -10/Exiles | Met EX-HEX 1476 | -10/Exiles | Met EX-BIN 1498 | -10/Exiles | Aligned with FarCom system 1500 | -10/Exiles | Given EX-Vault access code 1540 | -10/Exiles | Opened EX-Vault 1555 | -10/Exiles | Found Deploy-a-Sentry 1557 | -10/Exiles | Found Deploy-a-Sentry 1560 | -10/Exiles | Found Deploy-a-Sentry 1593 | -10/Exiles | Warned to stay clear of 0b10 Research branches 1748 | -10/Exiles | DAS Turret deployed 1752 | -10/Exiles | DAS Turret deployed 1766 | -10/Exiles | DAS Turret deployed 1862 | -10/Exiles | Found Potential Leg 1865 | -10/Exiles | Found Potential Leg 1932 | -10/Exiles | Attacked by the Exiles 1933 | -10/Exiles | Allies destroyed EX-HEX 1947 | -10/Exiles | Allies destroyed 8R-AWN 2021 | -10/Exiles | Core integrity fell below 50% 2062 | -10/Exiles | Lost 4 parts (1u3w) 2119 | -10/Exiles | Found AWS/Autocannon 2185 | -10/Exiles | Core integrity fell below 20% 2192 | -10/Exiles | Destroyed by DAS Turret with DAS Cannon Last Messages --------------- 02033_ Acquired Potential Leg. 02086_ The unstable cave ceiling collapses. 02115_ 5M=I>XHN EQSCL=AQRT 02115_ Acquired Med. Laser. 02119_ Acquired AWS/Autocannon. 02166_ Knocked back. 02171_ Med. Laser destroyed. 02171_ Knocked back. 02174_ Kicked DAS Turret. 02175_ Knocked back. 02177_ Kicked DAS Turret. 02179_ Kicked DAS Turret out of the way. 02179_ Potential Leg destroyed. 02179_ Knocked back. 02181_ Kicked DAS Turret out of the way. 02182_ Kicked DAS Turret. 02183_ Kicked DAS Turret out of the way. 02184_ Kicked DAS Turret. 02184_ Knocked back. 02185_ Acquired 21 matter. Map ----- +----------------------------------------------------+ | ????????????????? " " | | ???????????????? | | ???????????????? | | ???????????????? | | ????????????????? | | ?????????????????#" | | ?????????????????#""" """""" | | ????????????????##" ######""" | | ??????????????###"" ""##????#####""" | | ??????????????# #"" """##?????????##""" | | ??????????????# % """##???????????#""" | | ??????????????## ""#???????????##"" | | ??????????????# ########??####"""" | | ??????????????## % ;# ####""" | | ??????????????# t % % % % """" | | ??????????????# # | | ???????????????## % % % | | ???????????????# %% % | | ???????????????## " "" | | ????????????????# "## ##""" " | | ????????????????## ""#### ######" | | ?????????????????#" """"##??# #????## | | ?????????????????#""" """#??## ####??? | | ?????????????????## ""##??#! "!#??? | | ??????????????????#"" """##???#" !#??? | | ??????????????????##""" @ ##????#" "#??? | | ???????????????????##"""" ##?????#!!""!"#??? | | ????????????????????### % #??????########??? | | ??????????????????????##### ;#????????????????? | | ??????????????????????????## ##????????????????? | | ???????????????????????????? #?????????????????? | | ????????????????????????????? #?????????????????? | | ????????????????????????????? #?????????????????? | | ?????????????????????????????? #?????????????????? | | ?????????????????????????????? #?????????????????? | | ???????????????????????????????#?????????????????? | | ?????????????????????????????????????????????????? | | ?????????????????????????????????????????????????? | | ?????????????????????????????????????????????????? | | ?????????????????????????????????????????????????? | | ?????????????????????????????????????????????????? | | ?????????????????????????????????????????????????? | | ?????????????????????????????????????????????????? | | ?????????????????????????????????????????????????? | | ?????????????????????????????????????????????????? | | ?????????????????????????????????????????????????? | | ?????????????????????????????????????????????????? | | ?????????????????????????????????????????????????? | | ?????????????????????????????????????????????????? | | ?????????????????????????????????????????????????? | +----------------------------------------------------+ Best States ------------- Heat Dissipation 25 Energy Generation 14 Energy Capacity 250 Matter Stores 300 Matter Capacity 300 Sight Range 16 Terrain Scan Density 10 Armor Coverage 225 Power Shielding 66 Evasion (%) 66 Recoil Reduction 2 Item Schematics ----------------- None Robot Schematics ------------------ None Fabricated ------------ Nothing Alien Tech Used ----------------- None Achievements -------------- None Challenges ------------ None Game ------ Seed AlphaGrapheneAxe Manual? 0 Play Time 00:14:05 Cumulative 298.0 hours Start 2022.04.02 @ 18:08:01 End 2022.04.02 @ 18:17:36 Sessions 1 Manual Loads 0 Difficulty Rogue Special Mode None Game No. 333 Rogue 333 Adventurer 0 Explorer 0 Win Type - Total 27 Types 16/3/2/1/2/0/3/0/0 Lore% 83 Gallery% 79 Achievement% 80 Wizard Run 0 Options --------- ASCII 0 Keyboard 0 Movement Arrows Keybinds 0 Fullscreen 1 Font 18/SmallcapsGlow Map View 76x50 Tactical HUD 1 Map Filters NONE Filters NONE Steam 1 RUN: 58a3e1f5-025d-4cb9-b418-463e22f43e48